fUST/lending_fUST_20250131
["ID","MTS","AMOUNT","RATE_DAILY","PERIOD"]
[350978760,1738265444495,-500.0,0.00017059,2]
[350978762,1738265444504,-515.82718567,0.00017059,2]
[350978764,1738265444513,-500.0,0.00017059,2]
[350978766,1738265444525,-500.0,0.00017059,2]
[350978768,1738265444534,-500.0,0.00017059,2]
[350978770,1738265444543,-635.85716047,0.00017059,2]
[350978772,1738265444552,-500.0,0.00017059,2]
[350978774,1738265444560,-500.0,0.00017059,2]
[350978776,1738265444570,-500.0,0.00017059,2]
[350978778,1738265444579,-500.0,0.00017059,2]
[350978780,1738265444588,-500.0,0.00017059,2]
[350978781,1738265444597,-500.0,0.00017059,2]
[350978783,1738265444606,-500.0,0.00017059,2]
[350978785,1738265444615,-500.0,0.00017059,2]
[350978787,1738265444624,-500.0,0.00017059,2]
[350978789,1738265444633,-500.0,0.00017059,2]
[350978791,1738265444643,-500.0,0.00017059,2]
[350978793,1738265444652,-502.06719922,0.00017059,2]
[350978795,1738265444661,-500.0,0.00017059,2]
[350978797,1738265444670,-500.0,0.00017059,2]
[350978799,1738265444679,-398.87235149,0.00017059,2]
[350978801,1738265444688,-500.0,0.00017059,2]
[350978803,1738265444697,-503.53312682,0.00017059,2]
[350978805,1738265444707,-500.0,0.00017073,2]
[350978807,1738265444717,-500.0,0.00017121,2]
[350978809,1738265444725,-500.0,0.00017121,2]
[350978811,1738265444734,-500.0,0.00017121,2]
[350978813,1738265444743,-500.0,0.00017121,2]
[350978815,1738265444753,-738.55,0.00017194,2]
[350978817,1738265444762,-500.0,0.00017195,2]
[350978819,1738265444772,-1897.85,0.00017196,2]
[350978821,1738265444781,-536.70044648,0.00017196,2]
[350978823,1738265444790,-500.0,0.00017196,2]
[350978825,1738265444799,-500.0,0.00017196,2]
[350978827,1738265444808,-500.0,0.00017196,2]
[350978829,1738265444818,-244.01249361,0.00017196,2]
[350978831,1738265444834,-255.98750639,0.00017196,2]
[350978833,1738265444843,-500.0,0.00017196,2]
[350978835,1738265444853,-500.0,0.00017196,2]
[350978837,1738265444863,-500.0,0.00017196,2]
[350978839,1738265444872,-500.0,0.00017196,2]
[350978841,1738265444881,-575.60936158,0.00017196,2]
[350978843,1738265444891,-500.0,0.00017196,2]
[350978845,1738265444900,-268.24,0.00017196,2]
[350978847,1738265444913,-500.0,0.00017196,2]
[350978849,1738265444922,-500.0,0.00017196,2]
[350978851,1738265444931,-500.0,0.00017196,2]
[350978853,1738265444941,-500.0,0.00017196,2]
[350978855,1738265444951,-500.0,0.00017196,2]
[350978857,1738265444960,-601.27834216,0.00017196,2]
[350978859,1738265444969,-500.0,0.00017196,2]
[350978861,1738265444978,-500.0,0.00017196,2]
[350978863,1738265444990,-513.7883702,0.00017196,2]
[350978865,1738265445000,-187.39233916,0.00017196,2]
[350978867,1738265445009,-346.78,0.00017196,2]
[350978869,1738265445020,-500.0,0.00017196,2]
[350978871,1738265445029,-500.0,0.00017196,2]
[350978873,1738265445037,-500.0,0.00017196,2]
[350978875,1738265445046,-151.0,0.00017196,2]
[350978877,1738265445055,-500.0,0.00017196,2]
[350978879,1738265445064,-151.0,0.00017196,2]
[350978881,1738265445073,-500.0,0.00017196,2]
[350978883,1738265445082,-192.38,0.00017196,2]
[350978885,1738265445091,-537.29093951,0.00017196,2]
[350978886,1738265445101,-500.0,0.00017196,2]
[350978888,1738265445110,-500.0,0.00017196,2]
[350978890,1738265445119,-1714.86,0.00017196,2]
[350978892,1738265445128,-500.0,0.00017196,2]
[350978894,1738265445137,-500.0,0.00017196,2]
[350978896,1738265445146,-500.0,0.00017196,2]
[350978898,1738265445155,-500.0,0.00017196,2]
[350978900,1738265445164,-502.49027279,0.00017196,2]
[350978902,1738265445174,-463.37000222,0.00017196,2]
[350978904,1738265445183,-500.0,0.00017196,2]
[350978906,1738265445192,-500.0,0.00017196,2]
[350978908,1738265445201,-500.0,0.00017196,2]
[350978910,1738265445211,-500.0,0.00017196,2]
[350978912,1738265445221,-500.0,0.00017258,2]
[350978914,1738265445231,-500.0,0.00017258,2]
[350978916,1738265445240,-314.66,0.00017258,2]
[350978918,1738265445249,-500.0,0.00017258,2]
[350978920,1738265445258,-738.55,0.00017332,2]
[350978922,1738265445270,-500.0,0.00017332,2]
[350978924,1738265445279,-1897.85,0.00017333,2]
[350978926,1738265445288,-500.0,0.00017333,2]
[350978928,1738265445297,-500.0,0.00017333,2]
[350978930,1738265445306,-151.0,0.00017333,2]
[350978932,1738265445315,-718.06676619,0.00017333,2]
[350978935,1738265445328,-996.79323381,0.00017333,2]
[350978937,1738265445337,-335.2,0.00017333,2]
[350978939,1738265445346,-499.52641448,0.00017395,2]
[350978943,1738265445377,-0.47358552,0.00017395,2]
[350978945,1738265445386,-500.0,0.00017395,2]
[350978947,1738265445395,-500.0,0.00017395,2]
[350978949,1738265445404,-500.0,0.00017469,2]
[350978951,1738265445413,-500.0,0.00017469,2]
[350978953,1738265445422,-1198.5,0.00017469,2]
[350978955,1738265445431,-500.0,0.00017469,2]
[350978957,1738265445440,-1897.85,0.0001747,2]
[350978959,1738265445449,-500.0,0.0001747,2]
[350978961,1738265445459,-500.0,0.0001747,2]
[350978962,1738265445468,-1714.86,0.0001747,2]
[350978964,1738265445477,-500.0,0.00017532,2]
[350978966,1738265445486,-500.0,0.00017532,2]
[350978968,1738265445495,-500.0,0.00017532,2]
[350978970,1738265445504,-500.0,0.00017606,2]
[350978972,1738265445513,-1897.85,0.00017607,2]
[350978974,1738265445524,-500.0,0.00017607,2]
[350978976,1738265445533,-354.07,0.00017607,2]
[350978978,1738265445543,-1714.86,0.00017607,2]
[350978980,1738265445552,-555.64,0.00017669,2]
[350978982,1738265445562,-500.0,0.00017669,2]
[350978984,1738265445571,-500.0,0.00017669,2]
[350978986,1738265445580,-706.7832656,0.00017682,2]
[350978988,1738265445590,-363.9910091,0.000177,2]
[350978991,1738265445601,-1024.4205934,0.000177,2]
[350978993,1738265445610,-500.0,0.00017743,2]
[350978994,1738265445620,-1897.85,0.00017744,2]
[350978996,1738265445629,-500.0,0.00017744,2]
[350978998,1738265445638,-1714.86,0.00017744,2]
[350979000,1738265445647,-500.0,0.00017806,2]
[350979002,1738265445656,-500.0,0.00017806,2]
[350979004,1738265445666,-500.0,0.0001788,2]
[350979006,1738265445675,-1897.85,0.00017881,2]
[350979008,1738265445684,-500.0,0.00017881,2]
[350979021,1738265445792,-151.0,0.00017881,2]
[350979023,1738265445803,-1714.86,0.00017881,2]
[350979025,1738265445813,-207.18584088,0.000179,2]
[350979026,1738265445822,-279.10910686,0.00017943,2]
[350979028,1738265445832,-190.16,0.00017943,2]
[350979029,1738265445841,-500.0,0.00018017,2]
[350979031,1738265445851,-1897.85,0.00018018,2]
[350979032,1738265445861,-500.0,0.00018018,2]
[350979034,1738265445870,-1714.86,0.00018018,2]
[350979035,1738265445879,-500.0,0.0001808,2]
[350979037,1738265445888,-186.13897542,0.0001808,2]
[350979038,1738265445898,-1198.5,0.0001808,2]
[350979040,1738265445911,-738.55,0.00018154,2]
[350979041,1738265445920,-500.0,0.00018154,2]
[350979043,1738265445930,-1897.85,0.00018155,2]
[350979045,1738265445940,-500.0,0.00018155,2]
[350979046,1738265445950,-1714.86,0.00018155,2]
[350979048,1738265445959,-153.0,0.00018192,2]
[350979049,1738265445969,-308.4664278,0.00018192,2]
[350979051,1738265445978,-153.0,0.00018192,2]
[350979052,1738265445988,-153.0,0.00018192,2]
[350979054,1738265445998,-207.18584088,0.00018233,2]
[350979055,1738265446007,-500.0,0.0001829,2]
[350979057,1738265446017,-506.33968045,0.0001829,2]
[350979058,1738265446027,-500.0,0.0001829,2]
[350979060,1738265446036,-500.0,0.0001829,2]
[350979061,1738265446045,-500.0,0.00018291,2]
[350979063,1738265446054,-736.20048186,0.00018292,2]
[350979065,1738265446069,-1161.64951814,0.00018292,2]
[350979066,1738265446079,-500.0,0.00018292,2]
[350979068,1738265446089,-151.0,0.00018292,2]
[350979070,1738265446098,-151.0,0.00018292,2]
[350979071,1738265446108,-1714.86,0.00018292,2]
[350979073,1738265446117,-99.40979128,0.00018302,2]
[350979083,1738265446243,-500.0,0.00016438,2]
[350979085,1738265446253,-500.0,0.00016575,2]
[350979087,1738265446262,-21.9,0.0001671,2]
[350979089,1738265446288,-63.54074221,0.0001671,2]
[350979091,1738265446300,-414.55925779,0.0001671,2]
[350979093,1738265446309,-500.0,0.0001671,2]
[350979095,1738265446319,-500.0,0.00016847,2]
[350979096,1738265446328,-500.0,0.00016984,2]
[350979098,1738265446337,-151.0,0.00017059,2]
[350979099,1738265446346,-602.92,0.00017121,2]
[350979101,1738265446355,-58.85520872,0.00018302,2]
[350979103,1738265446365,-500.0,0.00018428,2]
[350979104,1738265446374,-1897.85,0.00018429,2]
[350979105,1738265446383,-500.0,0.00018429,2]
[350979107,1738265446392,-1714.86,0.00018429,2]
[350979109,1738265446401,-600.0,0.00018464,2]
[350979110,1738265446411,-192.09171963,0.00018565,2]
[350979112,1738265446419,-1897.85,0.00018566,2]
[350979113,1738265446429,-500.0,0.00018566,2]
[350979115,1738265446438,-151.0,0.00018566,2]
[350979117,1738265446447,-1714.86,0.00018566,2]
[350979118,1738265446456,-207.18584088,0.00018567,2]
[350979120,1738265446466,-156.1,0.000186,2]
[350979121,1738265446475,-1897.85,0.00018703,2]
[350979123,1738265446484,-500.0,0.00018703,2]
[350979125,1738265446493,-1714.86,0.00018703,2]
[350979126,1738265446503,-1897.85,0.0001884,2]
[350979128,1738265446512,-500.0,0.0001884,2]
[350979130,1738265446523,-1714.86,0.0001884,2]
[350979131,1738265446533,-207.18584088,0.000189,2]
[350979133,1738265446542,-1897.85,0.00018977,2]
[350979134,1738265446551,-500.0,0.00018977,2]
[350979136,1738265446561,-1714.86,0.00018977,2]
[350979138,1738265446570,-302.78807257,0.00019,2]
[350979139,1738265446580,-500.0,0.00019013,2]
[350979141,1738265446589,-151.0,0.00019013,2]
[350979142,1738265446598,-167.337054,0.00019013,2]
[350979144,1738265446609,-1198.5,0.00019013,2]
[350979146,1738265446618,-167.337054,0.00019013,2]
[350979147,1738265446627,-151.0,0.00019013,2]
[350979149,1738265446636,-153.0,0.00019014,2]
[350979151,1738265446645,-153.0,0.00019014,2]
[350979152,1738265446654,-195.7837045,0.00019014,2]
[350979154,1738265446664,-738.55,0.00019113,2]
[350979155,1738265446673,-1897.85,0.00019114,2]
[350979157,1738265446682,-500.0,0.00019114,2]
[350979159,1738265446691,-1714.86,0.00019114,2]
[350979160,1738265446700,-217.959794,0.00019178,2]
[350979162,1738265446709,-302.78807257,0.0001919,2]
[350979163,1738265446719,-207.18584088,0.00019233,2]
[350979165,1738265446729,-1897.85,0.00019251,2]
[350979166,1738265446737,-500.0,0.00019251,2]
[350979168,1738265446747,-1714.86,0.00019251,2]
[350979169,1738265446757,-302.78807257,0.0001938,2]
[350979171,1738265446766,-1897.85,0.00019388,2]
[350979173,1738265446779,-500.0,0.00019388,2]
[350979174,1738265446788,-1714.86,0.00019388,2]
[350979176,1738265446798,-151.0,0.000195,2]
[350979178,1738265446808,-1897.85,0.00019525,2]
[350979179,1738265446818,-518.05962424,0.00019525,2]
[350979181,1738265446827,-1714.86,0.00019525,2]
[350979182,1738265446836,-156.0613172,0.00019562,2]
[350979184,1738265446845,-153.0,0.00019562,2]
[350979185,1738265446855,-153.0,0.00019562,2]
[350979187,1738265446864,-207.18584088,0.00019567,2]
[350979188,1738265446873,-302.78807257,0.0001957,2]
[350979190,1738265446883,-1897.85,0.00019662,2]
[350979192,1738265446892,-151.0,0.00019662,2]
[350979193,1738265446903,-1714.86,0.00019662,2]
[350979195,1738265446917,-178.48026778,0.0001976,2]
[350979198,1738265446927,-1897.98594097,0.00019799,2]
[350979200,1738265446938,-1714.86,0.00019799,2]
[350979202,1738265446947,-300.0,0.0001988,2]
[350979205,1738265446959,-597.981,0.00019888,7]
[350979206,1738265446968,-207.18584088,0.000199,2]
[350979208,1738265446977,-474.71384692,0.0001992,2]
[350979209,1738265446989,-151.0,0.0001992,2]
[350979211,1738265446998,-151.0,0.0001992,2]
[350979213,1738265447010,-1714.86,0.00019936,2]
[350979215,1738265447019,-738.55,0.00019999,2]
[350979216,1738265447030,-1198.5,0.00019999,2]
[350979218,1738265447039,-160.0,0.0002,2]
[350979219,1738265447048,-7244.0,0.0002,2]
[350979221,1738265447057,-151.0,0.0002,2]
[350979223,1738265447066,-241.493227,0.0002,2]
[350979224,1738265447076,-1714.86,0.00020073,2]
[350979226,1738265447086,-153.0,0.0002011,2]
[350979227,1738265447095,-153.0,0.0002011,2]
[350979229,1738265447104,-153.0,0.0002011,2]
[350979231,1738265447113,-153.0,0.0002011,2]
[350979232,1738265447123,-153.0,0.0002011,2]
[350979234,1738265447133,-1714.89725584,0.0002021,2]
[350979235,1738265447143,-207.18584088,0.00020233,2]
[350979237,1738265447152,-275.19697457,0.00020386,2]
[350979239,1738265447161,-177.061862,0.00020447,2]
[350979240,1738265447171,-1001.27098313,0.00020453,5]
[350979242,1738265447181,-10102.998053,0.000205,2]
[350979244,1738265447190,-151.0,0.000205,4]
[350979245,1738265447200,-151.0,0.000205,2]
[350979247,1738265447209,-207.18584088,0.00020567,2]
[350979248,1738265447218,-738.55,0.00020766,2]
[350979250,1738265447227,-181.16,0.000208,2]
[350979252,1738265447236,-738.55,0.00020825,2]
[350979253,1738265447246,-1198.5,0.00020826,2]
[350979255,1738265447255,-537.0,0.00020827,2]
[350979257,1738265447264,-2043.0,0.00020827,2]
[350979258,1738265447275,-2306.0,0.00020827,2]
[350979260,1738265447285,-151.0,0.00020827,2]
[350979261,1738265447294,-167.337054,0.00020827,2]
[350979263,1738265447302,-167.337054,0.00020827,2]
[350979264,1738265447311,-207.18584088,0.000209,2]
[350979266,1738265447320,-1198.5,0.00020998,2]
[350979268,1738265447330,-738.55,0.00020999,2]
[350979269,1738265447340,-738.55,0.00020999,2]
[350979271,1738265447349,-738.55,0.00020999,2]
[350979273,1738265447358,-738.55,0.00020999,2]
[350979274,1738265447367,-1198.5,0.00020999,2]
[350979276,1738265447376,-1198.5,0.00020999,2]
[350979277,1738265447385,-1198.5,0.00020999,2]
[350979279,1738265447394,-24448.03121676,0.00021,2]
[350979281,1738265447403,-40641.64029701,0.00021,2]
[350979282,1738265447413,-1688.10529404,0.00021,7]
[350979284,1738265447422,-3450.018326,0.00021,2]
[350979285,1738265447431,-151.0,0.00021,2]
[350979287,1738265447440,-339.337483,0.00021,2]
[350979288,1738265447450,-339.337483,0.00021,2]
[350979290,1738265447460,-151.0,0.00021,2]
[350979292,1738265447470,-227.521882,0.00021,2]
[350979293,1738265447480,-151.0,0.00021,2]
[350979295,1738265447489,-151.0,0.00021,3]
[350979297,1738265447499,-151.0,0.00021,2]
[350979298,1738265447508,-167.337054,0.00021,2]
[350979300,1738265447517,-167.337054,0.00021,2]
[350979301,1738265447528,-151.0,0.00021,2]
[350979303,1738265447538,-151.0,0.00021,2]
[350979305,1738265447547,-151.0,0.00021,2]
[350979306,1738265447558,-207.18584088,0.00021233,2]
[350979308,1738265447567,-1000.0,0.0002145,2]
[350979309,1738265447577,-151.0,0.000215,4]
[350979311,1738265447587,-207.18584088,0.00021567,2]
[350979313,1738265447596,-1198.5,0.00021599,2]
[350979314,1738265447605,-151.0,0.00021599,2]
[350979316,1738265447615,-176.544827,0.00021599,2]
[350979318,1738265447624,-7244.0,0.000216,4]
[350979319,1738265447633,-151.0,0.000216,2]
[350979321,1738265447642,-172.219145,0.000216,2]
[350979323,1738265447652,-151.0,0.000216,2]
[350979324,1738265447662,-1000.0,0.00021638,2]
[350979326,1738265447671,-755.25701325,0.00021762,2]
[350979328,1738265447680,-650.95,0.000218,30]
[350979330,1738265447690,-151.0,0.000218,4]
[350979332,1738265447699,-995.67538918,0.000218,3]
[350979333,1738265447710,-500.0,0.00021819,30]
[350979335,1738265447719,-500.0,0.00021819,30]
[350979337,1738265447728,-428.50945288,0.00021823,30]
[350979339,1738265447737,-738.55,0.00021899,2]
[350979341,1738265447747,-738.55,0.00021899,2]
[350979343,1738265447756,-1198.5,0.00021899,2]
[350979345,1738265447765,-1198.5,0.00021899,2]
[350979347,1738265447776,-151.0,0.000219,2]
[350979349,1738265447785,-151.0,0.000219,2]
[350979351,1738265447794,-151.0,0.000219,3]
[350979353,1738265447804,-151.0,0.000219,2]
[350979355,1738265447813,-339.337483,0.000219,2]
[350979357,1738265447823,-339.337483,0.000219,2]
[350979359,1738265447832,-151.0,0.000219,2]
[350979361,1738265447842,-167.337054,0.000219,2]
[350979363,1738265447851,-167.337054,0.000219,2]
[350979365,1738265447861,-160.0,0.000219,3]
[350979367,1738265447871,-151.0,0.000219,2]
[350979368,1738265447880,-151.0,0.000219,2]
[350979369,1738265447890,-207.18584088,0.000219,3]
[350979370,1738265447901,-227.62639731,0.00021918,2]
[350979371,1738265447913,-738.55,0.00021999,2]
[350979372,1738265447923,-738.55,0.00021999,2]
[350979373,1738265447933,-738.55,0.00021999,2]
[350979374,1738265447943,-738.55,0.00021999,2]
[350979375,1738265447954,-738.55,0.00021999,2]
[350979376,1738265447964,-738.55,0.00021999,2]
[350979377,1738265447973,-738.55,0.00021999,2]
[350979378,1738265447983,-738.55,0.00021999,2]
[350979379,1738265447992,-738.55,0.00021999,2]
[350979380,1738265448003,-738.65861755,0.00021999,2]
[350979381,1738265448013,-1198.5,0.00021999,2]
[350979382,1738265448024,-1198.5,0.00021999,2]
[350979383,1738265448034,-1198.5,0.00021999,2]
[350979384,1738265448044,-1198.5,0.00021999,2]
[350979385,1738265448053,-1198.5,0.00021999,2]
[350979386,1738265448063,-1198.5,0.00021999,2]
[350979387,1738265448072,-1198.5,0.00021999,2]
[350979388,1738265448084,-1198.5,0.00021999,2]
[350979389,1738265448094,-1198.5,0.00021999,2]
[350979390,1738265448103,-1198.5,0.00021999,2]
[350979391,1738265448113,-1198.6025552,0.00021999,2]
[350979392,1738265448122,-390953.870156,0.00022,2]
[350979393,1738265448135,-3682.13468578,0.00022,2]
[350979394,1738265448178,-1155.0000002,0.00022,2]
[350979406,1738265448486,-500.0,0.00017058,2]
[350979408,1738265448496,-27.1500001,0.00017059,2]
[350982162,1738265535864,-442.0,0.0002233,120]
[350982163,1738265677591,159.355675,0.00013973,2]
[350982164,1738266288494,246.811513,0.00015101,2]
[350982166,1738266509236,162.677479,0.00013973,2]
[350982175,1738266561114,-637.843213,0.00015431,2]
[350982176,1738266561139,-200.0,0.0001549,2]
[350982177,1738266561161,-113.59152554,0.0001549,2]
[350982178,1738266561192,-44.87115556,0.0001549,2]
[350982179,1738266567117,-551.25753082,0.00015965,2]
[350982180,1738266567139,-175.98271539,0.00016338,2]
[350982181,1738266567162,-542.04075288,0.00016338,2]
[350982188,1738266632064,-26.03459688,0.00016338,2]
[350982189,1738266632074,-508.61522465,0.00016438,2]
[350982190,1738266632084,-500.0,0.00016438,2]
[350982191,1738266632093,-500.0,0.00016438,2]
[350982192,1738266632104,-500.0,0.00016438,2]
[350982193,1738266632113,-500.0,0.00016438,2]
[350982194,1738266632123,-180.80039295,0.00016438,2]
[350982202,1738266638116,-340.76899894,0.00016438,2]
[350982203,1738266638126,-500.0,0.00016438,2]
[350982204,1738266638136,-500.0,0.00016438,2]
[350982205,1738266638145,-500.0,0.00016438,2]
[350982206,1738266638155,-500.0,0.00016438,2]
[350982207,1738266638164,-500.0,0.00016438,2]
[350982208,1738266638174,-500.0,0.00016438,2]
[350982209,1738266638184,-460.12129269,0.00016438,2]
[350982210,1738266638193,-500.0,0.00016438,2]
[350982211,1738266638202,-500.0,0.00016438,2]
[350982212,1738266638212,-500.0,0.00016438,2]
[350982213,1738266638221,-500.0,0.00016438,2]
[350982214,1738266638230,-500.0,0.00016438,2]
[350982215,1738266638240,-510.75402698,0.00016438,2]
[350982216,1738266638249,-500.0,0.00016438,2]
[350982217,1738266638258,-500.0,0.00016438,2]
[350982218,1738266638268,-153.42539485,0.00016438,2]
[350982259,1738266640137,-346.57460515,0.00016438,2]
[350982261,1738266640147,-500.0,0.00016438,2]
[350982263,1738266640156,-500.0,0.00016438,2]
[350982265,1738266640166,-507.76093265,0.00016438,2]
[350982267,1738266640176,-484.61315533,0.00016438,2]
[350982269,1738266640185,-500.0,0.00016438,2]
[350982271,1738266640194,-500.0,0.00016438,2]
[350982273,1738266640203,-500.0,0.00016438,2]
[350982275,1738266640212,-500.0,0.00016438,2]
[350982277,1738266640222,-500.0,0.00016438,2]
[350982279,1738266640231,-500.0,0.00016438,2]
[350982281,1738266640240,-502.46918374,0.00016438,2]
[350982283,1738266640249,-500.0,0.00016438,2]
[350982284,1738266640258,-500.0,0.00016438,2]
[350982287,1738266640269,-500.0,0.00016438,2]
[350982288,1738266640279,-500.0,0.00016438,2]
[350982290,1738266640289,-500.0,0.00016438,2]
[350982292,1738266640298,-500.0,0.00016438,2]
[350982294,1738266640307,-500.0,0.00016438,2]
[350982296,1738266640317,-566.77,0.00016438,2]
[350982298,1738266640327,-500.0,0.00016438,2]
[350982300,1738266640339,-527.1500001,0.00016438,2]
[350982302,1738266640348,-500.0,0.00016438,2]
[350982304,1738266640358,-500.0,0.00016438,2]
[350982306,1738266640367,-500.0,0.00016438,2]
[350982308,1738266640378,-649.00158031,0.00016438,2]
[350982310,1738266640387,-500.0,0.00016438,2]
[350982312,1738266640397,-500.0,0.00016438,2]
[350982314,1738266640406,-500.0,0.00016438,2]
[350982315,1738266640416,-219.18874231,0.00016438,2]
[350982317,1738266640426,-500.0,0.00016438,2]
[350982319,1738266640435,-500.0,0.00016438,2]
[350982321,1738266640445,-500.0,0.00016438,2]
[350982323,1738266640454,-503.77915504,0.00016438,2]
[350982325,1738266640463,-500.0,0.00016438,2]
[350982327,1738266640473,-500.0,0.00016438,2]
[350982329,1738266640482,-500.0,0.00016438,2]
[350982331,1738266640491,-575.04674579,0.00016438,2]
[350982333,1738266640501,-500.0,0.00016438,2]
[350982335,1738266640510,-500.0,0.00016438,2]
[350982336,1738266640520,-500.0,0.00016438,2]
[350982338,1738266640529,-500.0,0.00016438,2]
[350982340,1738266640538,-500.0,0.00016438,2]
[350982342,1738266640547,-500.0,0.00016438,2]
[350982344,1738266640556,-500.0,0.00016438,2]
[350982346,1738266640566,-500.0,0.00016438,2]
[350982362,1738266640710,-500.0,0.00016438,2]
[350982364,1738266640720,-500.0,0.00016438,2]
[350982366,1738266640730,-500.0,0.00016438,2]
[350982368,1738266640739,-500.0,0.00016438,2]
[350982370,1738266640748,-503.71208199,0.00016438,2]
[350982372,1738266640757,-500.0,0.00016438,2]
[350982374,1738266640767,-500.0,0.00016438,2]
[350982375,1738266640777,-500.0,0.00016438,2]
[350982377,1738266640786,-500.0,0.00016438,2]
[350982379,1738266640795,-500.0,0.00016438,2]
[350982381,1738266640804,-500.0,0.00016438,2]
[350982383,1738266640813,-500.0,0.00016438,2]
[350982385,1738266640823,-500.0,0.00016438,2]
[350982387,1738266640833,-500.0,0.00016438,2]
[350982389,1738266640842,-500.0,0.00016438,2]
[350982391,1738266640851,-500.0,0.00016438,2]
[350982393,1738266640860,-500.0,0.00016438,2]
[350982395,1738266640869,-500.0,0.00016438,2]
[350982396,1738266640878,-182.91289199,0.00016438,2]
[350982398,1738266640888,-500.0,0.00016438,2]
[350982400,1738266640898,-472.8499999,0.00016438,2]
[350982402,1738266640907,-500.0,0.00016438,2]
[350982404,1738266640917,-500.0,0.00016438,2]
[350982406,1738266640926,-500.0,0.00016438,2]
[350982408,1738266640935,-361.63093715,0.00016438,2]
[350982410,1738266640944,-526.66492609,0.00016438,2]
[350982411,1738266640953,-500.0,0.00016438,2]
[350982413,1738266640963,-500.0,0.00016438,2]
[350982415,1738266640973,-500.0,0.00016438,2]
[350982417,1738266640982,-481.3429744,0.00016438,2]
[350982419,1738266640991,-500.0,0.00016438,2]
[350982421,1738266641000,-500.0,0.00016438,2]
[350982423,1738266641010,-202.88801006,0.00016438,2]
[350982425,1738266641019,-500.0,0.00016438,2]
[350982427,1738266641028,-500.0,0.00016438,2]
[350982429,1738266641037,-500.0,0.00016438,2]
[350982431,1738266641047,-500.0,0.00016438,2]
[350982433,1738266641056,-500.0,0.00016438,2]
[350982435,1738266641065,-286.99382286,0.00016438,2]
[350982437,1738266641075,-500.0,0.00016438,2]
[350982438,1738266641083,-500.0,0.00016438,2]
[350982440,1738266641093,-500.0,0.00016438,2]
[350982442,1738266641102,-500.0,0.00016438,2]
[350982444,1738266641112,-500.0,0.00016438,2]
[350982446,1738266641122,-500.0,0.00016438,2]
[350982448,1738266641131,-500.0,0.00016438,2]
[350982450,1738266641140,-500.0,0.00016438,2]
[350982452,1738266641150,-517.74225176,0.00016438,2]
[350982454,1738266641159,-500.0,0.00016438,2]
[350982456,1738266641168,-500.0,0.00016438,2]
[350982458,1738266641177,-500.0,0.00016438,2]
[350982460,1738266641186,-500.0,0.00016438,2]
[350982462,1738266641196,-349.2936984,0.00016438,2]
[350982464,1738266641211,-513.55607474,0.00016438,2]
[350982466,1738266641221,-500.0,0.00016438,2]
[350982468,1738266641230,-420.55267262,0.00016438,2]
[350982470,1738266641239,-213.78747386,0.00016438,2]
[350982472,1738266641249,-501.83,0.00016438,2]
[350982474,1738266641258,-500.0,0.00016438,2]
[350982476,1738266641268,-500.0,0.00016438,2]
[350982478,1738266641277,-500.0,0.00016438,2]